fUST/lending_fUST_20240810
["ID","MTS","AMOUNT","RATE_DAILY","PERIOD"]
[334582740,1723276246155,-648.97,0.00020821,3]
[334582741,1723276246164,-535.658592,0.00020821,2]
[334582742,1723276246173,-535.658592,0.00020821,2]
[334582743,1723276246182,-648.97,0.00020821,3]
[334582744,1723276246191,-535.658592,0.00020821,2]
[334582745,1723276246200,-648.97,0.00020821,3]
[334582746,1723276246210,-500.0,0.00020821,3]
[334582747,1723276246219,-648.97,0.00020821,3]
[334582748,1723276246227,-648.97,0.00020821,3]
[334582749,1723276246237,-500.0,0.00020821,3]
[334582750,1723276246247,-500.0,0.00020821,3]
[334582751,1723276246256,-648.97,0.00020821,3]
[334582752,1723276246265,-500.0,0.00020821,3]
[334582753,1723276246275,-649.09954984,0.00020821,3]
[334582754,1723276246285,-500.0,0.00020821,3]
[334582755,1723276246294,-502.8818134,0.00020821,3]
[334582756,1723276246304,-500.0,0.00020821,3]
[334582757,1723276246313,-500.0,0.00020821,3]
[334582758,1723276246324,-500.0,0.00020821,3]
[334582759,1723276246333,-502.47891096,0.00020821,3]
[334582760,1723276246342,-536.2667604,0.00020821,3]
[334582761,1723276246351,-509.68731067,0.00020821,3]
[334582762,1723276246361,-500.0,0.00020821,3]
[334582763,1723276246370,-1052.4,0.00020821,3]
[334582764,1723276246378,-500.0,0.00020821,3]
[334582765,1723276246387,-500.0,0.00020821,3]
[334582766,1723276246397,-500.0,0.00020821,3]
[334582767,1723276246406,-731.34,0.00020821,3]
[334582768,1723276246415,-500.0,0.00020821,3]
[334582769,1723276246425,-500.0,0.00020821,3]
[334582770,1723276246434,-500.0,0.00020821,3]
[334582771,1723276246444,-502.81171245,0.00020821,3]
[334582772,1723276246453,-500.0,0.00020821,3]
[334582773,1723276246462,-500.0,0.00020821,3]
[334582774,1723276246472,-500.0,0.00020821,3]
[334582776,1723276246481,-500.0,0.00020821,3]
[334582777,1723276246493,-500.0,0.00020821,3]
[334582778,1723276246508,-500.0,0.00020821,3]
[334582779,1723276246518,-500.0,0.00020821,3]
[334582780,1723276246527,-1095.95,0.00020821,3]
[334582781,1723276246536,-155.145213,0.00020821,2]
[334582782,1723276246546,-155.145213,0.00020821,2]
[334582783,1723276246555,-155.145213,0.00020821,2]
[334582784,1723276246570,-155.145213,0.00020821,2]
[334582785,1723276246580,-155.145213,0.00020821,2]
[334582786,1723276246589,-155.145213,0.00020821,2]
[334582787,1723276246598,-219.30487628,0.00020821,3]
[334582788,1723276246608,-500.0,0.00020821,3]
[334582789,1723276246617,-155.145213,0.00020821,2]
[334582790,1723276246627,-155.145213,0.00020821,2]
[334582791,1723276246640,-792.52,0.00020821,3]
[334582792,1723276246653,-155.145213,0.00020821,2]
[334582793,1723276246665,-500.0,0.00020821,3]
[334582794,1723276246674,-500.0,0.00020821,3]
[334582795,1723276246684,-155.145213,0.00020821,2]
[334582796,1723276246693,-500.0,0.00020821,3]
[334582797,1723276246703,-155.145213,0.00020821,2]
[334582798,1723276246713,-155.145213,0.00020821,2]
[334582799,1723276246723,-500.0,0.00020821,3]
[334582800,1723276246734,-505.59162293,0.00020821,3]
[334582801,1723276246747,-179.34503911,0.00020821,3]
[334582802,1723276246758,-500.0,0.00020821,3]
[334582803,1723276246768,-500.0,0.00020821,3]
[334582804,1723276246778,-527.758689,0.00020821,3]
[334582805,1723276246787,-500.0,0.00020821,3]
[334582806,1723276246797,-500.0,0.00020821,3]
[334582807,1723276246807,-505.43566481,0.00020821,3]
[334582808,1723276246816,-1873.34,0.00020821,3]
[334582809,1723276246828,-500.0,0.00020821,3]
[334582810,1723276246838,-500.0,0.00020821,3]
[334582811,1723276246848,-500.0,0.00020821,3]
[334582812,1723276246859,-500.0,0.00020821,3]
[334582813,1723276246869,-406.81594378,0.00020821,3]
[334582814,1723276246878,-500.0,0.00020821,3]
[334582815,1723276246888,-500.0,0.00020821,3]
[334582816,1723276246897,-699.7,0.00020821,3]
[334582817,1723276246906,-503.75870773,0.00020821,3]
[334582818,1723276246916,-500.0,0.00020821,3]
[334582819,1723276246925,-500.0,0.00020821,3]
[334582820,1723276246936,-500.0,0.00020821,3]
[334582821,1723276246947,-500.0,0.00020821,3]
[334582822,1723276246958,-500.0,0.00020821,3]
[334582823,1723276246967,-506.74375151,0.00020821,3]
[334582824,1723276246977,-500.0,0.00020821,3]
[334582825,1723276246986,-500.0,0.00020821,3]
[334582826,1723276247113,-500.0,0.00020821,3]
[334582827,1723276247123,-500.0,0.00020821,3]
[334582828,1723276247133,-859.21,0.00020821,3]
[334582829,1723276247142,-355.22870848,0.00020821,3]
[334582830,1723276247151,-500.0,0.00020821,3]
[334582831,1723276247161,-500.0,0.00020821,3]
[334582832,1723276247171,-509.49445872,0.00020821,3]
[334582833,1723276247181,-500.0,0.00020821,3]
[334582834,1723276247191,-535.13407904,0.00020821,3]
[334582835,1723276247200,-500.0,0.00020821,3]
[334582836,1723276247209,-687.21,0.00020821,3]
[334582837,1723276247220,-500.0,0.00020821,3]
[334582838,1723276247230,-500.0,0.00020821,3]
[334582839,1723276247240,-500.0,0.00020821,3]
[334582840,1723276247249,-516.41732021,0.00020821,3]
[334582841,1723276247258,-578.74,0.00020821,3]
[334582842,1723276247269,-578.74,0.00020821,3]
[334582843,1723276247279,-578.74,0.00020821,3]
[334582844,1723276247289,-578.74,0.00020821,3]
[334582845,1723276247298,-1142.89,0.00020821,3]
[334582846,1723276247307,-578.74,0.00020821,3]
[334582847,1723276247317,-578.74,0.00020821,3]
[334582848,1723276247326,-578.74,0.00020821,3]
[334582849,1723276247335,-500.0,0.00020821,3]
[334582850,1723276247344,-578.74,0.00020821,3]
[334582851,1723276247354,-578.74,0.00020821,3]
[334582852,1723276247364,-578.74,0.00020821,3]
[334582853,1723276247374,-578.74,0.00020821,3]
[334582854,1723276247383,-578.74,0.00020821,3]
[334582855,1723276247392,-578.74,0.00020821,3]
[334582856,1723276247402,-578.74,0.00020821,3]
[334582857,1723276247411,-578.74,0.00020821,3]
[334582858,1723276247421,-578.74,0.00020821,3]
[334582859,1723276247431,-578.74,0.00020821,3]
[334582860,1723276247440,-578.74,0.00020821,3]
[334582861,1723276247450,-578.74,0.00020821,3]
[334582862,1723276247459,-578.74,0.00020821,3]
[334582863,1723276247470,-578.74,0.00020821,3]
[334582864,1723276247479,-578.74,0.00020821,3]
[334582865,1723276247488,-578.74,0.00020821,3]
[334582866,1723276247498,-565.29734231,0.00020821,3]
[334582867,1723276247507,-578.81769817,0.00020821,3]
[334582868,1723276247517,-500.0,0.00020821,3]
[334582869,1723276247526,-505.25367923,0.00020821,3]
[334582870,1723276247535,-505.11462333,0.00020821,3]
[334582871,1723276247545,-500.0,0.00020821,3]
[334582872,1723276247554,-196.75710832,0.00020821,3]
[334582873,1723276247565,-1119.91,0.00020821,3]
[334582874,1723276247576,-500.0,0.00020821,3]
[334582875,1723276247585,-503.15555117,0.00020821,3]
[334582876,1723276247594,-684.91,0.00020821,3]
[334582877,1723276247604,-500.0,0.00020821,3]
[334582878,1723276247616,-510.84567934,0.00020821,3]
[334582879,1723276247627,-2428.73,0.00020821,3]
[334582880,1723276247636,-12780.97,0.00020821,3]
[334582881,1723276247646,-12780.97,0.00020821,3]
[334582882,1723276247656,-12780.97,0.00020821,3]
[334582883,1723276247666,-12780.97,0.00020821,3]
[334582884,1723276247675,-12780.97,0.00020821,3]
[334582885,1723276247685,-12780.97,0.00020821,3]
[334582886,1723276247694,-12780.97,0.00020821,3]
[334582887,1723276247703,-12780.97,0.00020821,3]
[334582888,1723276247714,-12780.97,0.00020821,3]
[334582889,1723276247725,-12780.97,0.00020821,3]
[334582890,1723276247735,-12780.97,0.00020821,3]
[334582891,1723276247745,-244.392481,0.00020821,2]
[334582892,1723276247755,-12780.97,0.00020821,3]
[334582893,1723276247765,-244.392481,0.00020821,2]
[334582894,1723276247774,-12780.97,0.00020821,3]
[334582895,1723276247783,-244.392481,0.00020821,2]
[334582896,1723276247792,-12780.97,0.00020821,3]
[334582897,1723276247800,-12780.97,0.00020821,3]
[334582898,1723276247809,-244.392481,0.00020821,2]
[334582899,1723276247819,-12780.97,0.00020821,3]
[334582900,1723276247828,-583.08,0.00020821,3]
[334582901,1723276247837,-244.392481,0.00020821,2]
[334582902,1723276247846,-12780.97,0.00020821,3]
[334582903,1723276247856,-500.0,0.00020821,3]
[334582904,1723276247865,-12780.97,0.00020821,3]
[334582905,1723276247875,-244.392481,0.00020821,2]
[334582906,1723276247884,-12780.97,0.00020821,3]
[334582907,1723276247893,-244.392481,0.00020821,2]
[334582908,1723276247903,-12780.97,0.00020821,3]
[334582909,1723276247912,-12780.97,0.00020821,3]
[334582910,1723276247922,-12780.97,0.00020821,3]
[334582911,1723276247931,-12780.97,0.00020821,3]
[334582912,1723276247940,-12780.9890985,0.00020821,3]
[334582913,1723276247950,-505.29704672,0.00020821,3]
[334582914,1723276247959,-244.392481,0.00020821,2]
[334582915,1723276247968,-244.392481,0.00020821,2]
[334582916,1723276247977,-500.0,0.00020821,3]
[334582917,1723276247986,-244.392481,0.00020821,2]
[334582918,1723276247996,-244.392481,0.00020821,2]
[334582919,1723276248006,-244.392481,0.00020821,2]
[334582920,1723276248015,-500.0,0.00020821,3]
[334582921,1723276248024,-244.392481,0.00020821,2]
[334582922,1723276248034,-500.0,0.00020821,3]
[334582923,1723276248043,-244.392476,0.00020821,2]
[334582924,1723276248053,-500.0,0.00020821,3]
[334582925,1723276248062,-500.0,0.00020821,3]
[334582926,1723276248071,-500.0,0.00020821,3]
[334582927,1723276248080,-500.0,0.00020821,3]
[334582928,1723276248090,-515.35381011,0.00020821,3]
[334582929,1723276248099,-503.46925531,0.00020821,3]
[334582930,1723276248109,-1626.06,0.00020821,3]
[334582931,1723276248118,-509.15636668,0.00020821,3]
[334582932,1723276248128,-500.0,0.00020821,3]
[334582933,1723276248137,-3529.93,0.00020821,3]
[334582934,1723276248146,-500.0,0.00020821,3]
[334582935,1723276248156,-500.0,0.00020821,3]
[334582936,1723276248165,-151.0,0.00020821,2]
[334582937,1723276248174,-151.72358,0.00020821,2]
[334582938,1723276248196,-500.0,0.00020821,3]
[334582939,1723276248205,-967.94,0.00020821,3]
[334582940,1723276248215,-501.12578534,0.00020821,3]
[334582941,1723276248224,-500.0,0.00020821,3]
[334582942,1723276248233,-1149.33,0.00020821,3]
[334582943,1723276248243,-500.0,0.00020821,3]
[334582944,1723276248253,-500.0,0.00020821,3]
[334582945,1723276248262,-151.0,0.00020821,2]
[334582946,1723276248272,-500.0,0.00020821,3]
[334582947,1723276248282,-151.0,0.00020821,2]
[334582948,1723276248292,-151.0,0.00020821,2]
[334582949,1723276248306,-151.0,0.00020821,2]
[334582950,1723276248315,-151.0,0.00020821,2]
[334582951,1723276248324,-151.0,0.00020821,2]
[334582952,1723276248334,-151.0,0.00020821,2]
[334582953,1723276248343,-500.0,0.00020821,3]
[334582954,1723276248352,-151.0,0.00020821,2]
[334582955,1723276248361,-500.0,0.00020821,3]
[334582956,1723276248370,-151.0,0.00020821,2]
[334582957,1723276248379,-265.891888,0.00020821,2]
[334582958,1723276248388,-627.71413237,0.00020821,3]
[334582959,1723276248397,-500.0,0.00020821,3]
[334582960,1723276248407,-703.72,0.00020821,3]
[334582961,1723276248416,-500.0,0.00020821,3]
[334582962,1723276248426,-500.0,0.00020821,3]
[334582963,1723276248435,-1754.68,0.00020821,3]
[334582964,1723276248445,-200.0,0.00020821,3]
[334582965,1723276248455,-500.0,0.00020821,3]
[334582966,1723276248465,-186.76007375,0.00020821,3]
[334582967,1723276248474,-500.0,0.00020821,3]
[334582968,1723276248484,-500.0,0.00020821,3]
[334582969,1723276248494,-201.40103009,0.00020821,3]
[334582970,1723276248503,-500.0,0.00020821,3]
[334582971,1723276248512,-500.0,0.00020821,3]
[334582972,1723276248521,-503.64010005,0.00020821,3]
[334582973,1723276248531,-506.19776692,0.00020821,3]
[334582974,1723276248540,-1233.245764,0.00020821,2]
[334582975,1723276248549,-1233.245764,0.00020821,2]
[334582976,1723276248559,-1405.47,0.00020821,3]
[334582977,1723276248572,-500.0,0.00020821,3]
[334582978,1723276248582,-1233.245764,0.00020821,2]
[334582979,1723276248591,-500.0,0.00020821,3]
[334582980,1723276248600,-1233.245764,0.00020821,2]
[334582981,1723276248611,-507.66907828,0.00020821,3]
[334582982,1723276248620,-500.0,0.00020821,3]
[334582983,1723276248630,-1233.245764,0.00020821,2]
[334582984,1723276248639,-1233.245764,0.00020821,2]
[334582985,1723276248650,-500.0,0.00020821,3]
[334582986,1723276248659,-500.0,0.00020821,3]
[334582987,1723276248668,-1233.245764,0.00020821,2]
[334582988,1723276248678,-1233.245764,0.00020821,2]
[334582989,1723276248687,-1233.245764,0.00020821,2]
[334582990,1723276248697,-1233.245764,0.00020821,2]
[334582991,1723276248707,-1233.245764,0.00020821,2]
[334582992,1723276248716,-1728.28,0.00020821,3]
[334582993,1723276248725,-1233.245773,0.00020821,2]
[334582994,1723276248734,-1230.73,0.00020821,3]
[334582995,1723276248744,-500.0,0.00020821,3]
[334582996,1723276248753,-500.0,0.00020821,3]
[334582997,1723276248762,-500.0,0.00020821,3]
[334582998,1723276248772,-500.0,0.00020821,3]
[334582999,1723276248781,-500.0,0.00020821,3]
[334583000,1723276248790,-500.0,0.00020821,3]
[334583001,1723276248799,-1020.31,0.00020821,3]
[334583002,1723276248809,-500.0,0.00020821,3]
[334583003,1723276248819,-500.0,0.00020821,3]
[334583004,1723276248829,-1357.12,0.00020821,3]
[334583005,1723276248838,-1202.64,0.00020821,3]
[334583006,1723276248847,-510.41166999,0.00020821,3]
[334583007,1723276248857,-500.0,0.00020821,3]
[334583008,1723276248867,-500.0,0.00020821,3]
[334583009,1723276248876,-502.05643386,0.00020821,3]
[334583010,1723276248885,-561.83,0.00020821,3]
[334583011,1723276248895,-2167.8,0.00020821,3]
[334583012,1723276248904,-503.98973753,0.00020821,3]
[334583013,1723276248913,-500.0,0.00020821,3]
[334583014,1723276248922,-500.0,0.00020821,3]
[334583015,1723276248932,-500.0,0.00020821,3]
[334583016,1723276248942,-500.0,0.00020821,3]
[334583017,1723276248951,-500.0,0.00020821,3]
[334583018,1723276248961,-500.0,0.00020821,3]
[334583019,1723276248970,-432.16777112,0.00020821,3]
[334583020,1723276248980,-505.25550787,0.00020821,3]
[334583021,1723276248989,-507.16325913,0.00020821,3]
[334583022,1723276248999,-500.0,0.00020821,3]
[334583023,1723276249009,-503.45749089,0.00020821,3]
[334583024,1723276249018,-500.0,0.00020821,3]
[334583025,1723276249029,-500.0,0.00020821,3]
[334583026,1723276249040,-500.0,0.00020821,3]
[334583027,1723276249050,-503.14562305,0.00020821,3]
[334583028,1723276249062,-500.0,0.00020821,3]
[334583029,1723276249072,-500.0,0.00020821,3]
[334583030,1723276249081,-500.0,0.00020821,3]
[334583031,1723276249090,-500.0,0.00020821,3]
[334583032,1723276249100,-599.29,0.00020821,3]
[334583033,1723276249110,-682.76,0.00020821,3]
[334583034,1723276249119,-7306.76,0.00020821,3]
[334583035,1723276249128,-996.95,0.00020821,3]
[334583036,1723276249137,-961.27,0.00020821,3]
[334583037,1723276249147,-500.0,0.00020821,3]
[334583038,1723276249156,-500.0,0.00020821,3]
[334583039,1723276249165,-1045.74,0.00020821,3]
[334583040,1723276249175,-596.04115,0.00020821,2]
[334583041,1723276249184,-596.04115,0.00020821,2]
[334583042,1723276249194,-500.0,0.00020821,3]
[334583043,1723276249203,-596.04115,0.00020821,2]
[334583044,1723276249212,-500.0,0.00020821,3]
[334583045,1723276249222,-596.04115,0.00020821,2]
[334583046,1723276249231,-596.04115,0.00020821,2]
[334583047,1723276249240,-596.04115,0.00020821,2]
[334583048,1723276249249,-500.0,0.00020821,3]
[334583049,1723276249258,-596.04115,0.00020821,2]
[334583050,1723276249268,-507.01360164,0.00020821,3]
[334583051,1723276249388,-596.04115,0.00020821,2]
[334583052,1723276249398,-596.04115,0.00020821,2]
[334583053,1723276249407,-596.04115,0.00020821,2]
[334583054,1723276249416,-596.04115,0.00020821,2]
[334583055,1723276249425,-596.04115,0.00020821,2]
[334583056,1723276249434,-596.04115,0.00020821,2]
[334583057,1723276249444,-2553.51,0.00020821,3]
[334583058,1723276249454,-845.5,0.00020821,3]
[334583059,1723276249463,-596.041148,0.00020821,2]
[334583060,1723276249473,-500.0,0.00020821,3]
[334583061,1723276249482,-500.0,0.00020821,3]
[334583062,1723276249492,-500.0,0.00020821,3]
[334583063,1723276249501,-978.98,0.00020821,3]
[334583064,1723276249511,-5003.0,0.00020821,3]
[334583065,1723276249520,-500.0,0.00020821,3]
[334583066,1723276249529,-500.0,0.00020821,3]
[334583067,1723276249538,-1513.92,0.00020821,3]
[334583068,1723276249548,-160.800318,0.00020821,2]
[334583069,1723276249558,-160.800318,0.00020821,2]
[334583070,1723276249571,-160.800318,0.00020821,2]
[334583071,1723276249581,-160.800318,0.00020821,2]
[334583072,1723276249591,-582.5,0.00020821,3]
[334583073,1723276249600,-502.81179889,0.00020821,3]
[334583074,1723276249610,-160.800318,0.00020821,2]
[334583075,1723276249619,-160.800318,0.00020821,2]
[334583076,1723276249629,-160.800318,0.00020821,2]
[334583077,1723276249639,-507.49885772,0.00020821,3]
[334583078,1723276249649,-160.800318,0.00020821,2]
[334583079,1723276249659,-160.800318,0.00020821,2]
[334583080,1723276249668,-500.0,0.00020821,3]
[334583081,1723276249678,-160.800318,0.00020821,2]
[334583082,1723276249687,-160.800318,0.00020821,2]
[334583083,1723276249697,-160.800318,0.00020821,2]
[334583084,1723276249707,-500.0,0.00020821,3]
[334583085,1723276249716,-160.800318,0.00020821,2]
[334583086,1723276249725,-160.800318,0.00020821,2]
[334583087,1723276249734,-262.098869,0.00020821,2]
[334583088,1723276249745,-711.58,0.00020821,3]
[334583089,1723276249754,-262.098869,0.00020821,2]
[334583090,1723276249763,-500.0,0.00020821,3]
[334583091,1723276249772,-1936.02,0.00020821,3]
[334583092,1723276249782,-262.098869,0.00020821,2]
[334583093,1723276249791,-262.098869,0.00020821,2]
[334583094,1723276249801,-262.098869,0.00020821,2]
[334583095,1723276249811,-262.098869,0.00020821,2]
[334583096,1723276249820,-2118.04,0.00020821,3]
[334583097,1723276249831,-262.098869,0.00020821,2]
[334583098,1723276249841,-262.098869,0.00020821,2]
[334583099,1723276249853,-262.098869,0.00020821,2]
[334583100,1723276249863,-262.098869,0.00020821,2]
[334583101,1723276249872,-262.098869,0.00020821,2]
[334583102,1723276249881,-262.098869,0.00020821,2]
[334583103,1723276249890,-262.098869,0.00020821,2]
[334583104,1723276249900,-262.09886,0.00020821,2]
[334583105,1723276249909,-500.0,0.00020821,3]
[334583106,1723276249918,-516.71003684,0.00020821,3]
[334583107,1723276249927,-500.0,0.00020821,3]
[334583108,1723276249936,-1612.46,0.00020821,3]
[334583109,1723276249946,-500.0,0.00020821,3]
[334583110,1723276249955,-500.0,0.00020821,3]
[334583111,1723276249965,-503.59559394,0.00020821,3]
[334583112,1723276249974,-1341.05,0.00020821,3]
[334583113,1723276249984,-495.66488613,0.00020821,3]
[334583114,1723276249993,-506.43327961,0.00020821,3]
[334583115,1723276250003,-500.0,0.00020821,3]
[334583116,1723276250012,-932.89,0.00020821,3]
[334583117,1723276250021,-550.39794094,0.00020821,3]
[334583118,1723276250031,-500.0,0.00020821,3]
[334583119,1723276250041,-518.97,0.00020821,3]
[334583120,1723276250050,-500.0,0.00020821,3]
[334583121,1723276250061,-500.0,0.00020821,3]
[334583122,1723276250071,-1015.13,0.00020821,3]
[334583123,1723276250082,-500.0,0.00020821,3]
[334583124,1723276250092,-1210.09,0.00020821,3]
[334583125,1723276250105,-978.65,0.00020821,3]
[334583126,1723276250115,-10666.06,0.00020821,3]
[334583127,1723276250127,-500.0,0.00020821,3]
[334583128,1723276250138,-507.93,0.00020821,3]
[334583129,1723276250148,-500.0,0.00020821,3]
[334583130,1723276250160,-940.84,0.00020821,3]
[334583131,1723276250170,-500.0,0.00020821,3]
[334583132,1723276250179,-500.0,0.00020821,3]
[334583133,1723276250188,-864.2,0.00020821,3]
[334583134,1723276250198,-2127.58,0.00020821,3]
[334583135,1723276250208,-500.0,0.00020821,3]
[334583136,1723276250217,-500.0,0.00020821,3]
[334583137,1723276250227,-680.320847,0.00020821,2]
[334583138,1723276250236,-680.320847,0.00020821,2]
[334583139,1723276250247,-680.320847,0.00020821,2]
[334583140,1723276250256,-680.320847,0.00020821,2]
[334583141,1723276250265,-680.320847,0.00020821,2]
[334583142,1723276250274,-680.320847,0.00020821,2]
[334583143,1723276250284,-500.0,0.00020821,3]
[334583144,1723276250294,-386.82113754,0.00020821,3]
[334583145,1723276250303,-680.320847,0.00020821,2]
[334583146,1723276250312,-1041.76,0.00020821,3]
[334583147,1723276250322,-850.09,0.00020821,3]
[334583148,1723276250331,-500.0,0.00020821,3]
[334583149,1723276250340,-502.40251605,0.00020821,3]
[334583150,1723276250350,-680.320847,0.00020821,2]
[334583151,1723276250359,-680.320847,0.00020821,2]
[334583152,1723276250369,-1165.39,0.00020821,3]
[334583153,1723276250378,-680.320847,0.00020821,2]
[334583154,1723276250387,-680.320847,0.00020821,2]
[334583155,1723276250396,-680.320847,0.00020821,2]
[334583156,1723276250406,-500.0,0.00020821,3]
[334583157,1723276250414,-502.58731087,0.00020821,3]
[334583158,1723276250424,-680.320847,0.00020821,2]
[334583159,1723276250433,-680.320847,0.00020821,2]
[334583160,1723276250442,-507.91352027,0.00020821,3]
[334583161,1723276250452,-500.0,0.00020821,3]
[334583162,1723276250461,-283.44599026,0.00020821,3]
[334583163,1723276250471,-151.0,0.00020821,2]
[334583164,1723276250480,-500.0,0.00020821,3]
[334583165,1723276250490,-500.0,0.00020821,3]
[334583166,1723276250499,-500.0,0.00020821,3]
[334583167,1723276250509,-500.0,0.00020821,3]
[334583168,1723276250518,-586.61,0.00020821,3]
[334583169,1723276250527,-711.65,0.00020821,3]
[334583170,1723276250536,-657.37,0.00020821,3]
[334583171,1723276250545,-625.64,0.00020821,3]
[334583172,1723276250554,-1327.47,0.00020821,3]
[334583173,1723276250565,-500.0,0.00020821,3]
[334583174,1723276250576,-994.33,0.00020821,3]
[334583175,1723276250586,-500.0,0.00020821,3]
[334583176,1723276250595,-679.67,0.00020821,3]
[334583177,1723276250605,-438.58578554,0.00020821,3]
[334583178,1723276250616,-500.0,0.00020821,3]
[334583179,1723276250626,-506.3986879,0.00020821,3]
[334583180,1723276250635,-500.0,0.00020821,3]
[334583181,1723276250647,-500.0,0.00020821,3]
[334583182,1723276250657,-773.77,0.00020821,3]
[334583183,1723276250666,-500.0,0.00020821,3]
[334583184,1723276250675,-205.72356645,0.00020821,3]
[334583185,1723276250685,-657.54,0.00020821,3]
[334583186,1723276250694,-293.26465577,0.00020821,3]
[334583187,1723276250704,-4428.06,0.00020821,3]
[334583188,1723276250713,-500.0,0.00020821,3]
[334583189,1723276250722,-500.0,0.00020821,3]
[334583190,1723276250732,-500.0,0.00020821,3]
[334583191,1723276250741,-500.0,0.00020821,2]
[334583192,1723276250752,-500.0,0.00020821,3]
[334583193,1723276250761,-500.0,0.00020821,3]
[334583194,1723276250770,-505.64,0.00020821,3]
[334583195,1723276250779,-755.55,0.00020821,3]
[334583196,1723276250789,-500.0,0.00020821,3]
[334583197,1723276250799,-4432.05,0.00020821,3]
[334583198,1723276250808,-500.0,0.00020821,3]
[334583199,1723276250817,-500.0,0.00020821,3]
[334583200,1723276250827,-557.97,0.00020821,3]
[334583201,1723276250837,-500.0,0.00020821,3]
[334583202,1723276250846,-500.0,0.00020821,3]
[334583203,1723276250855,-2078.74,0.00020821,3]
[334583204,1723276250865,-507.66033602,0.00020821,3]
[334583205,1723276250874,-1162.31,0.00020821,3]
[334583206,1723276250883,-500.0,0.00020821,3]
[334583207,1723276250893,-500.0,0.00020821,3]
[334583208,1723276250903,-500.0,0.00020821,3]
[334583209,1723276250914,-520.68497471,0.00020821,3]
[334583210,1723276250926,-500.0,0.00020821,3]
[334583211,1723276250937,-500.0,0.00020821,3]
[334583212,1723276250946,-500.0,0.00020821,3]
[334583213,1723276250955,-500.0,0.00020821,3]
[334583214,1723276250965,-612.491713,0.00020821,2]
[334583215,1723276250975,-612.491713,0.00020821,2]
[334583216,1723276250984,-612.491713,0.00020821,2]
[334583217,1723276250993,-612.491713,0.00020821,2]
[334583218,1723276251003,-612.491713,0.00020821,2]
[334583219,1723276251013,-612.491713,0.00020821,2]
[334583220,1723276251022,-506.06967238,0.00020821,3]
[334583221,1723276251031,-612.491713,0.00020821,2]
[334583222,1723276251041,-612.491713,0.00020821,2]
[334583223,1723276251050,-612.491713,0.00020821,2]
[334583224,1723276251060,-612.491713,0.00020821,2]
[334583225,1723276251069,-506.00562016,0.00020821,3]
[334583226,1723276251078,-612.491713,0.00020821,2]
[334583227,1723276251088,-612.491704,0.00020821,2]
[334583228,1723276251097,-500.0,0.00020821,3]
[334583229,1723276251107,-500.0,0.00020821,3]
[334583230,1723276251117,-883.7,0.00020821,3]
[334583231,1723276251127,-1181.3,0.00020821,3]
[334583232,1723276251135,-800.02,0.00020821,3]
[334583233,1723276251145,-500.0,0.00020821,3]
[334583234,1723276251155,-500.0,0.00020821,3]
[334583235,1723276251164,-1156.38,0.00020821,2]
[334583236,1723276251174,-705.26,0.00020821,3]
[334583237,1723276251183,-600.0,0.00020821,3]
[334583238,1723276251193,-500.0,0.00020821,3]
[334583239,1723276251203,-500.0,0.00020821,3]
[334583240,1723276251212,-1081.23,0.00020821,3]